bitfinex/quotes_ETHUSD_20220227
["timestamp","ask_amount","ask_price","bid_price","bid_amount"]
[1645988261322,3.6459,2740.3,2738.7,0.00096]
[1645988261523,0.18547572,2740.2,2739.1,0.9133686]
[1645988261723,0.18008108,2740.0,2739.1,0.75000405]
[1645988261922,0.91365,2739.8,2739.1,0.75000405]
[1645988262121,0.1459,2739.7,2739.1,0.75000405]
[1645988262323,0.19249215,2740.4,2739.5,1.31534371]
[1645988262525,0.18008108,2740.4,2739.5,1.31534371]
[1645988262977,0.1459,2740.3,2739.5,1.31534371]
[1645988263176,0.00434867,2740.1,2739.5,1.31534371]
[1645988263380,0.1459,2740.0,2739.5,1.31534371]
[1645988264377,0.91343,2740.4,2739.5,1.31534371]
[1645988264378,0.00598927,2739.9,2739.5,1.31534371]
[1645988264984,0.00598927,2739.9,2739.5,2.52871371]
[1645988265179,0.00598927,2739.9,2739.6,0.439]
[1645988265382,0.77149741,2741.6,2739.7,0.36261]
[1645988265681,0.74322206,2741.6,2740.2,0.9131018]
[1645988265880,0.18682649,2741.5,2740.1,2.2652036]
[1645988266078,3.68682649,2741.5,2740.3,0.9131]
[1645988266282,0.04035807,2741.4,2740.3,0.9131]
[1645988266523,0.1459,2741.3,2741.0,1.37042142]
[1645988266730,0.04035807,2741.4,2741.0,0.75323194]
[1645988266731,0.86318,2741.2,2741.0,0.75323194]
[1645988267530,0.18625807,2741.4,2741.0,0.75323194]
[1645988267731,0.04035807,2741.4,2741.0,0.75323194]
[1645988267932,0.00432799,2741.2,2741.0,0.75323194]
[1645988268130,0.00432799,2741.2,2740.9,0.913022]
[1645988268934,0.04035807,2741.4,2740.9,0.913022]
[1645988269130,0.04035807,2741.4,2741.2,1.35692949]
[1645988270379,0.04634417,2741.4,2741.2,1.35692949]
[1645988270583,0.18008108,2741.7,2741.3,21.0]
[1645988270781,0.18008108,2741.7,2741.2,1.35692949]
[1645988270782,0.02394081,2741.8,2741.4,12.5]
[1645988271381,7.3,2742.1,2741.4,12.5]
[1645988271584,7.3,2742.1,2741.9,1.31538696]
[1645988271780,7.3,2742.1,2741.4,12.5]
[1645988272180,7.3,2742.1,2741.3,1.8255982]
[1645988272382,3.68008108,2742.0,2740.8,2.0758983]
[1645988272585,0.1459,2741.9,2740.8,2.0758983]
[1645988272785,0.00432263,2741.8,2740.8,2.0758983]
[1645988272985,0.1459,2741.7,2740.8,2.0758983]
[1645988273387,1.05897,2741.7,2740.8,2.0758983]
[1645988273586,3.5,2741.6,2740.8,2.0758983]
[1645988273785,4.5,2741.6,2740.8,2.0758983]
[1645988274030,0.00598819,2741.5,2740.9,1.13679236]
[1645988274829,1.82634,2741.4,2740.9,1.13679236]
[1645988275430,1.82634,2741.4,2740.8,2.0758983]
[1645988276630,1.82634,2741.4,2741.1,1.30521891]
[1645988276837,1.82634,2741.4,2740.8,1.50772337]
[1645988277433,1.82634,2741.4,2740.8,0.25]
[1645988277673,1.77634,2741.4,2740.4,4.09658865]
[1645988277874,1.77634,2741.4,2741.0,1.13729363]
[1645988279279,1.77634,2741.4,2741.1,0.02183146]
[1645988279484,1.77634,2741.4,2741.1,0.01220901]
[1645988279680,1.91914811,2741.5,2741.1,0.01220901]
[1645988279882,1.91316,2741.5,2741.1,0.01220901]
[1645988280084,0.91914819,2741.5,2741.1,0.01220901]
[1645988280683,0.91914819,2741.5,2741.0,1.13729363]
[1645988280684,0.00598819,2741.5,2741.0,11.94850264]
[1645988281082,7.3,2742.1,2741.2,12.33738]
[1645988281423,0.00598819,2741.5,2741.4,1.8254802]
[1645988281618,0.02395046,2741.8,2741.4,34.2500802]
[1645988281815,0.02395046,2741.8,2741.6,0.3646]
[1645988282021,0.02395046,2741.8,2741.6,0.8036]
[1645988282217,0.9016,2742.3,2741.7,12.46298975]
[1645988282417,0.9016,2742.3,2741.8,11.4246]
[1645988282619,0.9016,2742.3,2741.8,13.2496495]
[1645988282822,0.00252419,2742.7,2741.8,2.1896495]
[1645988283021,0.00252419,2742.7,2741.7,1.03838975]
[1645988283222,0.00252419,2742.7,2741.7,1.33838975]
[1645988284024,0.00252419,2742.7,2742.0,0.3646]
[1645988284223,7.3,2742.8,2741.9,2.737311]
[1645988284422,0.00252419,2742.7,2741.9,2.737311]
[1645988284630,0.00252419,2742.9,2741.9,2.737311]
[1645988284823,0.00252419,2742.7,2741.9,2.737311]
[1645988285024,0.91708024,2742.5,2741.8,0.9125157]
[1645988285286,3.5,2742.4,2741.8,0.9125157]
[1645988285483,0.1458,2742.3,2741.8,0.9125157]
[1645988285883,4.50252419,2742.8,2741.8,0.9126063]
[1645988286189,4.50252419,2742.8,2741.5,1.825527]
[1645988286190,0.00598799,2742.2,2741.5,1.825527]
[1645988286993,0.00598799,2742.2,2741.3,0.27175261]
[1645988287195,1.03430441,2741.8,2741.3,0.27175261]
[1645988287390,1.03430441,2741.8,2741.3,0.02175261]
[1645988287391,3.5,2741.7,2741.3,0.02175261]
[1645988287589,0.1459,2741.6,2741.3,0.02175261]
[1645988287989,0.1459,2741.6,2740.7,0.25557725]
[1645988287990,16.5,2741.5,2740.7,0.25557725]
[1645988288191,1.08350226,2740.9,2740.2,0.9132799]
[1645988288394,1.08350226,2740.9,2740.1,3.6514189]
[1645988288395,1.08350226,2740.9,2740.1,0.25]
[1645988288588,1.08350226,2740.9,2739.8,0.0043]
[1645988288589,0.1459,2740.8,2740.7,0.00557725]
[1645988288791,0.1459,2740.8,2739.8,0.0043]
[1645988288792,8.5,2740.7,2739.8,0.0043]
[1645988289074,3.6459,2740.6,2739.5,0.9135123]
[1645988289266,1.27377633,2740.3,2739.5,0.9135123]
[1645988289468,3.6459,2740.6,2739.5,0.9135123]
[1645988289469,4.6459,2740.6,2739.5,0.9135123]
[1645988289768,0.91354,2740.5,2739.5,0.9135123]
[1645988291068,0.91354,2740.5,2739.9,0.00156908]
[1645988291871,0.0008,2739.7,2739.5,0.9135123]
[1645988293472,0.0008,2739.7,2739.5,0.91872939]
[1645988293673,0.9133,2740.9,2739.5,12.34332939]
[1645988293977,0.28409997,2741.0,2739.5,12.34332939]
[1645988293978,0.13819997,2741.0,2740.2,0.9131301]
[1645988294175,0.91905165,2741.3,2740.2,0.9131301]
[1645988294373,0.1459,2741.5,2740.2,0.9131301]
[1645988294575,0.00583158,2741.3,2740.3,0.3]
[1645988294775,0.00583158,2741.3,2740.4,0.91304]
[1645988294973,0.00583158,2741.3,2740.7,1.21708299]
[1645988295571,3.6459,2741.6,2740.6,0.9130244]
[1645988295774,0.00583284,2741.3,2740.6,0.9180693]
[1645988296635,1.51700785,2741.6,2740.6,0.9130244]
[1645988296834,1.51700785,2741.6,2741.0,0.9130004]
[1645988297038,0.00583276,2741.3,2741.0,0.9130004]
[1645988297239,0.00583276,2741.3,2741.0,2.7388826]
[1645988297838,0.91304,2741.7,2741.0,2.7388826]
[1645988298138,0.00571626,2741.3,2741.0,2.7388826]
[1645988299140,1.37110785,2741.6,2741.0,2.7388826]
[1645988299340,0.00571626,2741.3,2741.0,2.7388826]
[1645988299542,0.00571626,2741.3,2740.6,0.00465564]
[1645988299543,1.20662206,2740.9,2740.6,0.00465564]
[1645988300380,1.69708893,2740.8,2740.1,0.25]
[1645988300580,1.37110785,2740.7,2740.6,0.00465564]
[1645988300776,2.28441785,2740.8,2740.6,0.00465564]
[1645988301177,1.37110785,2740.7,2740.6,0.00465564]
[1645988301576,0.2244,2740.8,2739.7,0.9134133]
[1645988301777,1.36038788,2740.6,2739.7,0.9134133]
[1645988301977,4.86038788,2740.5,2739.7,0.9134133]
[1645988302179,0.91342,2740.4,2739.7,0.9134133]
[1645988302978,0.91342,2740.4,2739.9,0.00471367]
[1645988303279,2.27380788,2740.4,2739.9,0.00471367]
[1645988303479,5.77380788,2740.4,2739.9,0.00471367]
[1645988303924,3.27380788,2740.4,2739.7,0.9134133]
[1645988304126,3.27380788,2740.4,2740.0,0.0047135]
[1645988304528,2.36038788,2740.4,2740.0,0.0047135]
[1645988304826,1.36038788,2740.5,2740.0,0.0047135]
[1645988305033,1.36038788,2740.4,2739.7,0.9134133]
[1645988305433,1.36038788,2740.4,2739.6,5.15360603]
[1645988305434,1.36038788,2740.4,2740.1,0.91797119]
[1645988305632,1.36038788,2740.4,2740.3,1.31626365]
[1645988305931,1.36038788,2740.4,2740.1,0.91797119]
[1645988305932,1.36038788,2740.5,2740.1,0.91797119]
[1645988306431,1.36038788,2740.5,2740.1,0.9132661]
[1645988306631,1.36038788,2740.5,2740.2,0.30470492]
[1645988306833,1.36038788,2740.7,2740.2,0.30470492]
[1645988307433,1.36038788,2740.7,2740.2,0.3]
[1645988307684,1.36038788,2740.7,2740.5,1.1168196]
[1645988307879,1.58478788,2740.8,2740.5,0.93718748]
[1645988308074,1.58478788,2740.8,2740.5,1.85030768]
[1645988309078,1.58478788,2740.8,2740.5,1.85501322]
[1645988309682,1.36038788,2740.7,2740.5,1.85501322]
[1645988309882,1.36038788,2740.7,2740.5,1.85030768]
[1645988310084,1.36038788,2740.7,2740.5,1.85501322]
[1645988311081,1.36038788,2740.7,2740.5,1.85030768]
[1645988311524,1.36038788,2740.7,2740.5,1.8550133]
[1645988312127,1.36038788,2740.6,2740.5,1.8550133]
[1645988312329,0.2244,2740.8,2740.5,1.85030768]
[1645988312330,1.36038788,2740.7,2740.5,1.85030768]
[1645988312526,1.36038788,2740.7,2740.5,1.85501312]
[1645988313529,1.36038788,2740.7,2740.5,1.85030768]
[1645988313730,1.36038788,2740.7,2740.5,1.85501312]
[1645988314530,1.36038788,2740.7,2740.5,1.21501312]
[1645988314828,1.36038788,2740.8,2740.5,1.21030768]
[1645988315029,1.36038788,2740.8,2740.5,1.21501312]
[1645988315490,1.36038788,2740.7,2740.5,1.21501312]
[1645988315994,1.36038788,2740.7,2740.5,0.2731202]
[1645988316193,1.36038788,2740.7,2740.5,0.00470547]
[1645988316194,1.83148125,2740.7,2740.5,0.00470547]
[1645988316392,1.83148125,2740.6,2740.5,0.00470547]
[1645988316600,1.83148125,2740.6,2739.8,0.71810827]
[1645988316793,1.36665952,2740.3,2739.8,0.71810827]
[1645988317191,1.36665952,2740.2,2739.8,0.71810827]
[1645988317391,1.36665952,2740.3,2739.8,1.31810827]
[1645988317592,1.36665952,2740.3,2739.8,1.01810827]
[1645988317793,1.36665952,2740.3,2739.8,0.71810827]
[1645988318293,1.36665952,2740.3,2739.6,1.83027744]
[1645988318498,1.83148125,2740.5,2739.4,0.25]
[1645988318499,1.36665952,2740.1,2739.4,0.25]
[1645988318698,1.36665952,2739.9,2738.9,2.734]
[1645988318927,1.36665952,2739.9,2738.8,3.9040449]
[1645988318928,4.86665952,2739.8,2738.8,3.9040449]
[1645988319128,4.86665952,2739.8,2738.8,0.25]
[1645988319129,1.36665952,2739.7,2738.8,0.25]
[1645988319327,0.1459,2739.6,2738.6,0.00096]
[1645988319729,0.1459,2739.6,2739.1,0.00555477]
[1645988319928,0.1459,2739.6,2739.1,0.91917057]
[1645988320233,0.1459,2739.6,2739.1,0.00555477]
[1645988320630,0.1459,2739.6,2739.0,1.44100797]
[1645988321041,0.1459,2739.6,2739.2,0.00555457]
[1645988321535,1.36665952,2739.9,2739.2,0.00555457]
[1645988321932,1.36665952,2739.9,2739.1,0.9136231]
[1645988322134,1.36665952,2739.8,2739.4,0.00555416]
[1645988322980,1.36665952,2739.9,2739.4,0.00555416]
[1645988323189,1.36665952,2739.8,2739.4,1.1052322]
[1645988323385,2.97738125,2740.1,2739.5,0.00555406]
[1645988323386,1.36665952,2739.9,2739.5,0.00555406]
[1645988323788,2.28027952,2739.9,2739.5,0.00555406]
[1645988324387,2.28027952,2739.9,2739.4,1.1052322]
[1645988324589,2.28027952,2739.9,2739.6,0.00555386]
[1645988324786,0.1459,2739.8,2739.6,0.00467173]
[1645988324988,2.28027952,2739.9,2739.6,0.00467173]
[1645988325187,1.36665952,2739.8,2739.6,0.00467173]
[1645988325588,2.28027952,2739.9,2739.1,0.9136231]
[1645988325789,1.36665952,2739.8,2739.1,0.9136231]
[1645988326831,2.28027952,2739.9,2739.5,1.04390694]
[1645988327030,2.28027952,2739.9,2739.5,13.68172634]
[1645988327031,1.36665952,2739.9,2739.5,13.68172634]
[1645988327236,0.67078329,2740.6,2739.7,11.36]
[1645988327237,1.36665952,2740.3,2739.7,11.36]
[1645988327434,1.36665952,2740.3,2739.8,0.526]
[1645988327837,1.83148125,2740.6,2740.1,1.223865]
[1645988327838,1.36665952,2740.4,2740.1,1.223865]
[1645988328033,1.36665952,2740.4,2740.2,0.91313]
[1645988328234,1.36665952,2740.4,2740.2,1.8262691]
[1645988328636,1.36665952,2740.3,2740.2,1.8262691]
[1645988332482,1.83148125,2740.4,2740.2,1.8262691]
[1645988333286,1.83148125,2740.4,2740.2,0.9131391]
[1645988333486,1.83148125,2740.5,2740.2,0.9131391]
[1645988333687,1.83148125,2740.4,2740.2,0.9131391]
[1645988335158,1.78148125,2740.4,2740.2,0.9131391]
[1645988335561,0.1459,2740.7,2739.9,0.9133589]
[1645988335762,2.41953919,2740.7,2740.0,0.00555072]
[1645988335959,0.91344,2740.5,2740.0,0.00555072]
[1645988336158,0.1459,2740.4,2740.0,0.00555072]
[1645988336362,0.1459,2740.4,2739.9,0.9133589]
[1645988336565,4.58198298,2740.4,2740.0,0.00555072]
[1645988336767,0.1459,2740.3,2740.0,0.00311716]
[1645988336965,0.91366,2740.1,2740.0,0.00311716]
[1645988337163,4.41366,2740.1,2740.0,0.00311716]
[1645988337363,7.21329919,2740.1,2740.0,0.00311716]
[1645988337565,6.08556,2740.1,2740.0,0.00311716]
[1645988337996,1.22472698,2739.4,2738.9,1.8271884]
[1645988338195,1.36679728,2739.2,2738.6,1.36908412]
[1645988338396,1.36679728,2739.2,2738.5,4.5673026]
[1645988338597,4.86679728,2739.1,2738.5,4.5673026]
[1645988338796,1.36679728,2739.0,2738.5,4.5673026]
[1645988338999,1.36679728,2739.2,2738.5,4.5673026]
[1645988339401,1.36679728,2739.0,2738.5,4.5673026]
[1645988340200,1.36679728,2739.0,2738.6,0.00554749]
[1645988340400,1.36679728,2739.1,2738.6,0.00554749]
[1645988340601,1.36679728,2739.1,2738.6,0.00650749]
[1645988340801,1.36679728,2739.0,2738.6,0.00554749]
[1645988341001,1.36679728,2739.0,2738.6,0.00650749]
[1645988341203,1.36679728,2739.0,2738.5,4.5673026]
[1645988341426,1.36679728,2739.0,2738.7,0.00554739]
[1645988342041,2.49755669,2739.3,2738.7,0.00554739]
[1645988342042,1.36679728,2739.1,2738.7,0.00554739]
[1645988342235,1.36679728,2739.0,2738.7,0.00554739]
[1645988342435,0.00087195,2738.6,2738.4,0.00096]
[1645988342634,0.00087195,2738.6,2738.2,0.9361287]
[1645988343233,0.00087195,2738.6,2738.3,1.18112773]
[1645988343534,0.00087195,2738.6,2738.2,0.9139355]
[1645988344033,0.00087195,2738.6,2738.3,0.0055481]
[1645988344836,0.00087195,2738.6,2738.2,0.9139355]
[1645988345034,0.00087195,2738.6,2738.3,0.0055481]
[1645988346089,0.00087195,2738.6,2738.2,0.9139355]
[1645988346294,0.00087195,2738.6,2738.3,0.0055481]
[1645988347195,0.00087195,2738.6,2738.2,0.9139355]
[1645988347390,0.00087195,2738.6,2738.3,0.0055481]
[1645988348490,0.00087195,2738.6,2738.2,0.9139355]
[1645988348691,0.00087195,2738.6,2738.3,0.00166821]
[1645988349139,0.00087195,2738.6,2738.3,0.91540821]
[1645988349348,0.00087195,2738.6,2738.4,0.06493784]
[1645988349749,0.00087195,2738.6,2738.4,0.36493784]
[1645988350945,0.00087195,2738.6,2738.4,0.36660602]
[1645988351747,0.00087195,2738.6,2738.4,0.73120602]
[1645988351947,7.195e-05,2738.6,2738.4,0.72953784]
[1645988352148,0.8459,2739.7,2739.0,0.9136194]
[1645988352547,0.8459,2739.7,2739.0,1.2136194]
[1645988352989,0.8459,2739.7,2739.4,1.22276632]
[1645988353396,0.8459,2739.7,2739.2,0.00554628]
[1645988354397,2.21269728,2739.7,2739.0,1.2136194]
[1645988354597,0.8459,2739.7,2739.4,1.0400951]
[1645988354797,0.28409997,2739.8,2739.4,1.0400951]
[1645988355000,1.65089725,2739.8,2739.4,1.0400951]
[1645988355196,1.50499725,2739.8,2739.4,1.0400951]
[1645988355898,1.50499725,2739.8,2739.5,0.00538712]
[1645988355899,0.13819997,2739.8,2739.5,0.00538712]
[1645988356098,0.28409997,2739.8,2739.5,0.00538712]
[1645988356531,1.65089725,2739.8,2739.5,0.00538712]
[1645988356732,1.50499725,2739.8,2739.0,1.2136194]
[1645988357034,1.36679728,2739.7,2739.5,0.00538703]
[1645988357231,1.50499725,2739.8,2739.5,0.00538703]
[1645988357436,1.50499725,2739.8,2739.4,0.77481494]
[1645988358038,1.36679728,2739.6,2738.9,1.8272387]
[1645988358243,1.36679728,2739.4,2738.5,24.71928849]
[1645988358439,1.51269728,2739.3,2738.5,0.97862919]
[1645988358641,1.89279728,2739.2,2738.5,0.97862919]
[1645988359238,3.2835322,2739.2,2738.5,0.97862919]
[1645988359438,1.36679728,2739.1,2738.7,0.00166419]
[1645988359639,4.2835322,2739.2,2738.7,0.00166419]
[1645988359840,1.36679728,2739.1,2738.7,0.00166419]
[1645988360288,1.89279728,2739.2,2738.7,0.00166419]
[1645988360486,1.36679728,2739.1,2738.5,0.9138252]
[1645988360687,1.36679728,2739.1,2738.8,0.00553372]
[1645988361087,0.526,2739.2,2738.8,0.00553372]
[1645988361088,1.36679728,2739.2,2738.8,0.00553372]
[1645988361288,1.36679728,2739.3,2738.8,0.91927632]
[1645988361486,0.1459,2739.2,2738.8,0.91927632]
[1645988361688,0.1459,2739.2,2738.8,0.9137426]
[1645988361887,0.1459,2739.2,2738.9,0.00553351]
[1645988362088,1.51269728,2739.2,2738.9,0.00553351]
[1645988362288,1.51269728,2739.3,2738.9,0.00553351]
[1645988362488,1.36679728,2739.3,2738.9,0.00553351]
[1645988362892,1.36679728,2739.3,2738.8,0.9137426]
[1645988363088,1.36679728,2739.3,2739.0,0.00553331]
[1645988364034,1.36679728,2739.2,2738.8,0.9137426]
[1645988364235,1.36679728,2739.2,2739.0,0.00553321]
[1645988364432,1.36679728,2739.3,2739.0,0.00553321]
[1645988364832,2.34678139,2739.6,2739.0,0.00553321]
[1645988364833,1.36679728,2739.4,2739.0,0.00553321]
[1645988365239,1.36679728,2739.4,2738.9,0.0644025]
[1645988365448,1.36679728,2739.5,2739.1,0.00553311]
[1645988365639,2.82078139,2739.7,2739.5,1.30255981]
[1645988365640,1.36679728,2739.7,2739.5,1.30255981]
[1645988365840,1.36679728,2739.7,2739.1,0.00553311]
[1645988366443,1.36679728,2739.7,2739.1,3.5]
[1645988366640,0.146,2740.2,2739.3,0.00553271]
[1645988366641,1.36679728,2739.8,2739.3,0.00553271]
[1645988367043,1.36679728,2739.9,2739.3,0.00553271]
[1645988367244,0.75906093,2740.3,2739.3,0.00553271]
[1645988367245,1.36679728,2740.0,2739.3,0.00553271]
[1645988367444,1.36679728,2740.2,2739.3,11.43013271]
[1645988367692,1.36679728,2740.3,2740.1,1.24482138]
[1645988367893,1.82078139,2740.6,2740.1,1.24482138]
[1645988367894,1.36679728,2740.4,2740.1,2.15799948]
[1645988368099,0.0239666,2740.5,2740.1,2.15799948]
[1645988368100,1.39076388,2740.5,2740.1,2.15799948]
[1645988368296,0.0239666,2740.5,2740.2,0.3]
[1645988368793,0.0239666,2740.5,2740.2,1.57778]
[1645988368993,1.36679728,2740.7,2740.2,1.57778]
[1645988369196,0.00599271,2740.6,2740.2,1.57778]
[1645988369398,0.00599271,2740.6,2740.3,4.9295288]
[1645988369995,1.72519728,2740.8,2740.3,4.9295288]
[1645988370200,1.72519728,2740.8,2740.5,0.3646]
[1645988370398,1.72519728,2740.8,2740.6,14.9246]
[1645988370399,0.3584,2740.8,2740.6,14.9246]
[1645988370602,1.36679728,2741.2,2740.8,11.4246]
[1645988370796,1.36679728,2741.2,2740.8,3.8646]
[1645988371101,1.36679728,2741.3,2741.1,1.13117758]
[1645988371298,1.36679728,2741.4,2741.0,0.91281]
[1645988371572,1.36679728,2741.4,2740.4,1.3928]
[1645988371573,1.36679728,2741.2,2740.4,1.3928]
[1645988371771,1.36679728,2741.1,2740.4,0.3]
[1645988372171,1.36679728,2741.1,2740.3,3.0389788]
[1645988372370,1.36679728,2741.1,2740.4,1.82596]
[1645988372569,1.37113066,2741.1,2740.6,0.9131199]
[1645988372771,1.37113066,2741.1,2740.6,0.80372383]
[1645988373572,1.36679728,2741.1,2740.6,0.80372383]
[1645988373774,1.37113082,2741.1,2740.6,0.80372383]
[1645988374270,1.37113082,2741.1,2740.4,1.82596]
[1645988374271,1.37113082,2741.1,2740.7,1.8260104]
[1645988374873,1.36679728,2741.1,2740.7,1.8260104]
[1645988375077,1.37279015,2741.1,2740.8,0.00559153]
[1645988376108,1.36679728,2741.1,2740.7,2.1260104]
[1645988376309,1.37279023,2741.1,2740.8,0.00559143]
[1645988376510,1.22279023,2741.1,2740.8,0.00559143]
[1645988376708,1.22279023,2741.1,2740.8,0.91858433]
[1645988377109,0.00599295,2741.1,2740.8,1.83156433]
[1645988377308,1.82078139,2741.5,2740.8,1.83156433]
[1645988377309,1.82078139,2741.5,2740.8,1.8259729]
[1645988377512,0.00599295,2741.1,2740.8,1.83156433]
[1645988378519,1.82078139,2741.6,2740.8,0.9129929]
[1645988378719,2.05894,2741.7,2740.8,0.91760304]
[1645988378720,0.0056986,2741.1,2740.8,0.91760304]
[1645988379635,3.23340068,2741.5,2740.8,0.9129929]
[1645988379833,0.0056986,2741.1,2740.8,0.91760304]
[1645988380844,1.82078139,2741.6,2740.8,0.9129929]
[1645988381038,0.0056986,2741.1,2740.8,0.91760304]
[1645988381937,1.82330558,2741.8,2740.8,0.9129929]
[1645988382438,0.00574165,2741.1,2740.8,0.91774656]
[1645988383293,0.00252419,2741.8,2740.8,0.9129929]
[1645988383497,1.84626645,2741.8,2741.2,1.44008502]
[1645988383692,0.02296087,2741.8,2741.2,1.44008502]
[1645988383893,0.02296087,2741.8,2741.1,0.9129467]
[1645988384094,0.02548506,2741.8,2741.1,0.9129467]
[1645988384496,0.00252419,2741.8,2741.1,0.9129467]
[1645988384696,0.0057415,2741.6,2741.1,0.9129467]
[1645988384996,0.0057415,2741.6,2741.5,1.22509414]
[1645988385697,1.35667669,2741.9,2741.5,1.22509414]
[1645988385898,0.00599229,2741.7,2741.5,1.22509414]
[1645988386553,0.00599229,2741.7,2741.5,1.52509414]
[1645988386955,1.35667669,2742.1,2741.5,1.52509414]
[1645988387154,0.00599226,2741.7,2741.5,1.52509414]
[1645988387759,0.00599226,2741.7,2741.5,1.20627055]
[1645988388165,0.00252419,2742.0,2741.5,1.20627055]
[1645988388463,0.00599226,2741.7,2741.5,4.70627055]
[1645988388669,0.00599226,2741.7,2741.5,1.57087055]
[1645988388863,0.00599226,2741.7,2741.5,1.20627055]
[1645988389363,1.35920088,2742.3,2741.5,1.50627055]
[1645988389364,1.35667669,2742.2,2741.5,1.50627055]
[1645988389562,0.00252419,2742.3,2741.5,1.50627055]
[1645988389563,0.00599446,2741.7,2741.5,1.50627055]
[1645988389762,0.00599446,2741.7,2741.5,1.54886649]
[1645988390184,0.00599446,2741.7,2741.4,0.95522204]
[1645988390392,0.02649844,2742.1,2740.8,1.8259392]
[1645988390393,0.39013251,2741.3,2740.8,1.8259392]
[1645988390589,0.39013251,2741.3,2740.6,3.74812]
[1645988390590,0.39013251,2741.3,2740.6,0.25]
[1645988390887,0.57021359,2741.3,2740.9,0.00559732]
[1645988391087,0.1459,2741.2,2740.9,0.00559732]
[1645988391487,0.39013251,2741.3,2740.9,0.91861062]
[1645988391687,0.39013251,2741.3,2740.9,0.9130133]
[1645988391890,0.0059948,2741.2,2741.0,2.7381699]
[1645988392087,0.0059948,2741.2,2741.0,3.0381699]
[1645988392306,9.48e-05,2741.2,2741.1,12.83391833]
[1645988392487,0.39013251,2741.3,2741.2,20.5]
[1645988392988,0.39013251,2741.3,2741.2,20.8]
[1645988393188,0.00252419,2742.1,2741.4,1.8254368]
[1645988393388,1.35920088,2742.3,2741.5,0.3]
[1645988393686,1.35920088,2742.3,2741.7,1.2869311]
[1645988393951,1.50247669,2742.5,2741.7,1.5869311]
[1645988394135,1.35667669,2742.5,2741.7,1.5869311]
[1645988394335,1.35667669,2742.5,2741.8,0.9126834]
[1645988394535,1.35667669,2742.5,2741.3,9.5]
[1645988394536,1.35667669,2742.2,2741.3,9.5]
[1645988394734,1.35667669,2742.2,2741.3,9.8]
[1645988394933,1.50247669,2742.2,2741.3,9.8]
[1645988395134,0.03289687,2741.7,2741.3,9.8]
[1645988395540,0.03289687,2741.7,2741.5,1.8255015]
[1645988396740,0.03889133,2741.7,2741.5,1.8255015]
[1645988397793,0.03289687,2741.7,2741.5,1.8255015]
[1645988397994,0.03889133,2741.7,2741.5,1.8255015]
[1645988399102,0.03289687,2741.7,2741.5,1.8255015]
[1645988399395,0.03889133,2741.7,2741.5,1.8255015]
[1645988400197,0.03289687,2741.7,2741.5,1.8255015]
[1645988400398,0.03289687,2741.7,2741.6,1.22368597]
[1645988400399,0.0384974,2741.7,2741.6,1.22368597]
[1645988400596,0.0384974,2741.7,2741.5,1.7547915]
[1645988400798,0.0384974,2741.7,2741.3,9.5]
[1645988401200,0.0384974,2741.7,2740.9,0.00560221]
[1645988401201,0.1459,2741.6,2740.9,0.00560221]
[1645988401463,0.1459,2741.6,2739.6,0.3808]
[1645988401464,0.01277346,2741.0,2739.6,0.3808]
[1645988401663,0.01277346,2741.0,2739.0,0.85197]
[1645988401664,0.00231062,2740.8,2739.7,0.9133993]
[1645988401855,0.526,2740.7,2739.4,1.8268435]
[1645988402150,3.6459,2740.6,2738.8,0.25]
[1645988402352,1.35667669,2740.4,2738.8,0.25]
[1645988402553,0.91362,2740.2,2738.8,0.25]
[1645988402752,1.42568762,2739.6,2738.3,6.1901]
[1645988402954,0.526,2740.0,2738.6,12.89997752]
[1645988403153,2.35667669,2740.3,2738.6,12.89997752]
[1645988403154,1.0,2740.3,2738.6,12.89997752]
[1645988403351,0.1459,2740.2,2738.7,0.2646]
[1645988403551,3.5,2740.4,2738.7,0.2646]
[1645988403754,4.5,2740.4,2739.0,0.91348]
[1645988403956,4.5,2740.4,2739.3,1.28910351]
[1645988403957,1.35201977,2740.1,2739.3,1.28910351]
[1645988404164,0.04575987,2739.6,2739.5,0.913403]
[1645988404355,1.35201977,2740.1,2739.5,0.913403]
[1645988404757,0.1459,2740.0,2739.5,0.913403]
[1645988405200,0.1459,2740.0,2739.7,0.00561477]
[1645988405598,0.1459,2740.3,2739.7,0.00561477]
[1645988405803,0.04575987,2739.8,2739.7,0.00481477]
[1645988406006,3.6459,2740.1,2739.7,0.00481477]
[1645988406204,0.1459,2740.1,2739.4,1.8268059]
[1645988406602,0.526,2740.0,2738.8,0.25]
[1645988406808,0.1459,2739.9,2738.8,0.25]
[1645988407003,0.526,2739.8,2738.8,0.25]
[1645988407203,1.32926178,2739.2,2738.6,1.8273819]
[1645988407806,1.35667669,2740.1,2738.8,3.1049569]
[1645988408005,1.35667669,2740.3,2738.8,2.7403569]
[1645988408209,0.526,2740.5,2738.9,19.86]
[1645988408210,1.35667669,2740.5,2738.9,19.86]
[1645988408407,0.146,2740.4,2739.1,11.06]
[1645988408608,0.1459,2740.6,2739.5,1.8264498]
[1645988408806,0.1459,2740.6,2739.4,14.93021328]
[1645988409042,0.1459,2740.6,2740.0,1.51494855]
[1645988409239,1.50257669,2740.6,2740.0,2.42812855]
[1645988409448,0.1459,2740.6,2740.3,0.60170055]
[1645988410247,1.35898731,2740.8,2740.3,2.42779055]
[1645988410447,1.35898731,2740.8,2740.4,15.0]
[1645988410645,0.00231062,2740.8,2740.4,15.0]
[1645988410847,0.00231062,2740.8,2740.4,15.3]
[1645988411248,0.00231062,2740.8,2740.6,1.31176514]
[1645988411545,1.062e-05,2740.8,2740.6,2.22474514]
[1645988411748,1.062e-05,2740.8,2740.6,13.88474514]
[1645988411950,1.062e-05,2740.8,2740.6,1.51298]
[1645988412546,1.062e-05,2740.8,2740.6,4.2514866]
[1645988414022,1.062e-05,2740.8,2740.6,15.3114866]
[1645988414224,1.062e-05,2740.8,2740.6,4.2514866]
[1645988414424,1.062e-05,2740.8,2740.7,0.60170055]
[1645988414628,1.35667669,2741.5,2740.8,21.0]
[1645988414823,1.35667669,2741.5,2740.9,0.9128149]
[1645988414824,0.00599433,2741.2,2740.9,0.9128149]
[1645988415229,9.433e-05,2741.2,2741.1,11.4246]
[1645988415432,9.433e-05,2741.2,2741.1,4.026]
[1645988415624,9.433e-05,2741.2,2741.1,0.526]
[1645988415825,0.03289687,2741.7,2741.2,21.0]
[1645988416025,0.03289687,2741.7,2741.2,23.7380617]
[1645988416226,0.03289687,2741.7,2741.3,0.3]
[1645988416632,0.03289687,2741.7,2741.2,2.7380617]
[1645988416838,1.35667669,2741.6,2741.2,2.7380617]
[1645988417034,1.35667669,2741.6,2741.2,0.9127017]
[1645988417432,1.36247758,2741.6,2741.2,0.9127017]
[1645988417838,1.36247758,2741.6,2741.2,2.20407252]
[1645988418037,1.36247758,2741.6,2741.2,15.75412252]
[1645988418038,0.00580089,2741.6,2741.2,15.75412252]